Workbook

Sheet Introduction
A3: Spark Spread Estimator Version 1.2
A5: INTRODUCTION AND PURPOSE
A6: The Combined Heat and Power Partnership (CHPP) Spark Spread Estimator is a tool that evaluates the anticipated spark spread of a CHP system compared to using separate heat and power (SHP).
A10: Spark spread is the difference per kilowatt-hour (kWh) between the current delivered electricity price and the total cost to generate power with a CHP system. A numerically positive spark spread result indicates that the CHP project returns more than the cost of capital. The greater the spark spread, the higher the potential return on investment.
A14: The estimator is intended to help CHP end users and other interested parties conduct a very preliminary initial screening of potential CHP cost savings at a facility based on basic site data – annual electricity usage, annual thermal loads, average electricity and fuel prices, and annual hours of operation. The tool is not intended to estimate the economic performance of a specific CHP project. It is intended only to give the user an initial understanding of whether CHP has the potential to provide economic savings at their facility. In addition to comparing a preliminary estimate of the cost to generate power on-site (including a CHP thermal credit) in terms of $/kWh to the retail price of power at the site (the “spark spread), the estimator provides an approximate comparison of energy consumption and costs with and without CHP in order to provide context for the estimated spark spread.
A16: An important functional issue for the estimator is the use of macros to perform calculations and move the user through the estimator. Macros must be enabled in Excel for the estimator to function properly.
A18: Instructions and notes accompany each field in the estimator. In addition, there is a separate documentation file linked from each worksheet in the estimator that provides further information, references, descriptions, and assumptions.
A20: The estimator is designed for users with at least a moderate understanding of CHP technology and its terminology. If you would like to learn more about CHP technologies, please visit:
A23: www.epa.gov/chp
A25: Please note that the results generated by the estimator are intended for educational and outreach purposes only; it is not designed for use in feasibility studies or to make investment-grade decisions. All results achieved through the independent use of the estimator are subject to input error and therefore are not endorsed by the EPA CHP Partnership. If you are interested in additional technical assistance to evaluate whether CHP is applicable to your facility, please contact the CHP Partnership help line at 703-373-8108 or chp@epa.gov.
A32: SECTIONS
A34: There are three main sections of the estimator:
A35: 1) Inputs. On the Inputs worksheet, users characterize a potential CHP project by completing each of the 11 numbered subsections. Each subsection contains a question and at least one cell to provide input or to select a value. To complete a subsection, users can choose between two options:
A36: - Manually enter or select (from a pull-down menu) site-specific information.
A37: - Use default information provided by the estimator.
A39: The estimator can generate a spark spread estimate with as few as three inputs (location, business type and electricity use), but the most accurate estimate will be obtained if users input the following facility-specific information:
A40: - Annual or monthly electricity consumption.
A41: - Annual, monthly or hourly estimates of heating load (i.e., steam or hot water loads that could be supplied by CHP).
A42: - Average electricity costs for the facility ($/kWh).
A43: - Average natural gas or fuel costs for the facility ($/MMBtu or $/therm).
A44: - Annual operating hours.
A46: 2) CHP Spark Spread Results. The CHP Spark Spread Results worksheet summarizes the facility's energy use, the CHP system chosen to meet the facility's energy needs, and the spark spread calculation.
A48: 3) Energy Use and Operating Costs. The Energy Use and Operating Costs worksheet presents an approximation of the facility's energy and economic performance with and without CHP, to provide context for the estimated spark spread.
A50: COMBINED HEAT AND POWER
A51: Combined heat and power (CHP) is a highly efficient method of providing power and useful thermal energy (heating or cooling) at the point of use with a single fuel source. An industrial or commercial entity can use CHP to produce electricity and thermal energy instead of obtaining electricity from the grid and producing thermal energy in an on-site furnace or boiler. In this way, CHP can provide significant energy efficiency, cost savings, and environmental benefits compared to the combination of grid-supplied electricity and on-site boiler use (referred to as separate heat and power or SHP).
A53: The electricity generated by the CHP system on site displaces the cost of power purchases from the utility, but results in increased fuel consumption, increased maintenance costs and a capital investment in equipment and installation. The annual operating savings from CHP is defined as the difference between displaced electricity purchases and incremental fuel and maintenance costs.
A55: If the results of the estimator indicate that a potential CHP project looks favorable, users may wish to contact the CHP Partnership help line at 703-373-8108 or chp@epa.gov to determine if additional technical assistance may be useful in considering whether to move forward with investigating its feasibility. Please note that project-specific assistance is available for organizations belonging to the CHP Partnership. Details on becoming a partner are available at:
A61: http://www.epa.gov/chp/partnership/index.html
A63: ADDITIONAL INFORMATION
A64: EPA promotes greater use of CHP because significant cost-effective emissions reductions can be achieved by increasing the efficiency of the nation's energy supply. CHP systems achieve overall efficiencies of 60 to 80 percent, compared to separate heat and power generation with an average efficiency of 45 percent in the United States. This improvement in efficiency translates to:
A66: 1) reduced fossil fuel use,
A67: 2) reduced emissions of carbon dioxide and other air pollutants.
A69: Furthermore, when used for onsite electricity generation, CHP avoids transmission and distribution losses that occur when distributing centrally generated power, resulting in further efficiency gains.
A72: Visit the Combined Heat and Power Partnership website at: | G72: http://www.epa.gov/chp/
A73: for more information on CHP technologies, qualities of a good CHP candidate site, emissions and fuel savings benefits, and funding opportunities.
A76: HELP US IMPROVE THE SPARK SPREAD ESTIMATOR
A78: We welcome your input on the Spark Spread Estimator's usability and functionality as we strive to ensure its effectiveness. We would also like to know if you encounter any issues when using the tool. Please send us comments or questions via phone or e-mail to the CHP help line at: 703-373-8108 or chp@epa.gov.

Sheet Inputs
B1: Spark Spread Estimator Version 1.2
E3: Instructions
B4: 1. What state is the facility located in? | E4: Click on the input cell and use the drop down list to select the appropriate state.
B6: 2. What is the line of business of the facility? | E6: Click on the input cell and use the drop down list to select the appropriate line of business (categories are based on two- or four-digit SIC codes). If your facility's line of business is not listed, select a similar line of business.
B8: 3. What is the typical monthly electric use in kWh? | E8: Enter the kWh used during a typical month or divide the annual kWh consumption by 12.
B10: 4. What is the typical monthly heating load or fuel use of the facility (enter a value in only ONE of the boxes)? | E10: Enter a value in either the monthly heating load or monthly fuel use input box. If possible, enter the heating load, which will produce a better estimate of spark spread. If inputting monthly fuel use, input total gas use from a representative month's natural gas bill, or calculate from annual gas consumption divided by 12. If this information is not available, select the “use default” option, which will estimate the heating load based on the line of business selected in question 2. 1 Therm is equivalent to 0.1 MMBtu (1 MMBtu = 10 Therms) 1 MCF is equivalent to 1.03 MMBtu (1 MMBtu = 0.97 MCF) The estimator considers heating loads only (CHP can provide cooling as well, and if this is your primary thermal need, please contact the CHPP helpline at 703-373-8108 for additional assistance).
B11: Monthly heating load in MMBtu
B12: Monthly Fuel Use in MMBtu
B14: 5. How many hours per year does the facility operate? | C14: 3 | E14: Enter the annual operating hours of the facility or choose from one of the hourly operating schedules in the drop-down list. If the annual operating hours of the facility are not known, use the default button that will estimate the operating hours based on the line of business selected in question 2.
B17: 6. Would the facility be able to use the CHP Investment Tax Credit? | E17: CHP systems placed into service before January 1, 2017 may be eligible for a 10 percent federal investment tax credit. In order to take advantage of this tax credit, the system owner must have tax liability to which the credit can be applied. Select yes or no in this input to indicate whether the facility can use this Investment Tax Credit.
B19: 7. What is the existing fuel price in $/MMBtu? | E19: Enter the cost of fuel currently used to produce thermal energy at the facility. If unsure of the fuel cost, the default button will supply the average industrial natural gas price for the state.
E20: 1 Therm is equivalent to 0.1 MMBtu (1 MMBtu = 10 Therms) 1 MCF is equivalent to 1.03 MMBtu (1 MMBtu = 0.97 MCF)
B22: 8. What is the CHP fuel price in $/MMBtu? | E22: In many cases the CHP fuel price will be the same as the existing fuel price entered in question 7. However in certain states, fuel for CHP systems is provided at a special rate. If your state or utility offers a discounted CHP fuel price, enter it in this subsection, otherwise enter the same fuel price used in question 7.
B24: 9. What is the existing all-in electric price in $/kWh? | E24: Enter the total price of electricity at the facility in $/kWh. To calculate this value, take the total bill amount for a representative month and divide by the number of kWh consumed. If this value is not known, select the default button to use the industrial average retail electric price for the state.
B26: 10. What is the existing thermal equipment efficiency? (typically 75 - 82%) | E26: Input the efficiency of the equipment currently providing thermal energy to the facility. This can be boilers producing steam or hot water, or direct process heaters, for example. The efficiency of thermal equipment is typically between 75 and 82 percent. If this value is not known, select the default button to use the default value of 80 percent.
B28: 11. What is the cost of capital for your company? | E28: Input the cost of capital used by your organization to evaluate capital investments. The cost of capital is the cost of a company's funds (both debt and equity). Typically, it is the minimum return that the company expects for a capital project, thus setting a benchmark that a new project has to meet. The default value of 7 percent is a typical cost of capital for commercial companies.
B31: 12. What is the equipment life? | C31: 20 | E31: Select the expected lifetime of the project, between 1 and 30 years. This will determine the timeframe for the NPV and IRR calculations. By clicking "default" the value populated will represent the typical project life for the technology.

Sheet CHP Spark Spread Results
A1: CHP Spark Spread Results
A2: Spark Spread Estimator Version 1.2
A6: The results generated by this estimator are intended for educational and outreach purposes only;
A7: they are not intended to replace the economic calculations in a Level 1 CHP feasibility analysis.
A9: Facility Energy Use*
B11: Facility Average Electric Demand, kW | C11: =IF(OpHours=0,0,ElecUse/OpHours*12) -> 0 | D11: The facility electric demand based on the monthly electric use and hours of operation specified on the Inputs page
B12: Facility Average Heating, MMBtu/hour | C12: =IF(OpHours=0,0,IF(ThermalUse=0,FuelUse*0.8/OpHours*12,ThermalUse/OpHours*12)) -> 0 | D12: The facility hourly heating load based on the heating load or fuel use and hours of operation specified on the Inputs page
A14: CHP System Information*
B16: CHP System Type | C16: =CHPSysTypeDef -> No CHP | D16: The CHP system type identified by the estimator to best meet the energy needs of the facility (based on size of heating load)
B17: CHP System Capacity, kW | C17: =MIN(HLOOKUP(BaseThermalUse,'Technology Assumptions'!$C$3:$I$4,2)*BaseThermalUse*1000000/3413,BaseElecDemand) -> 0 | D17: The CHP system size identified by the estimator to best meet the energy needs of the facility. In the absence of a load profile that shows the facility’s electric demand over time, the estimator assumes that the facility’s electric demand is constant. The CHP system is sized to meet this constant electric demand
B18: CHP Electric Efficiency | C18: =ElecEffDef -> No CHP | D18: The electric efficiency of the specified CHP system
B19: CHP Thermal Output, Btu/kWh | C19: =CHPThermOutputDef -> No CHP | D19: The thermal output of the CHP system on a Btu/kWh basis
B20: CHP Thermal Output, MMBtu/hour | C20: =IF(CHPSize<50,"No CHP",C19*CHPSize/1000000) -> No CHP | D20: The thermal output of the CHP system on an MMBtu/hr basis
B21: CHP System Fuel Cost (Natural Gas), $/MMBtu | C21: =CHPFuelPrice -> 0 | D21: The price of fuel for the CHP system
B22: CHP Installed Cost, $/kW | C22: =TotalCapCostDef -> No CHP | D22: The installed cost of the CHP system in $/kW
B23: CHP O&M Cost, cents/kWh | C23: =OandMCostsDef -> No CHP | D23: The non-fuel operating and maintenance cost of the CHP system in $/kWh
A26: CHP Cost to Generate Power *
B28: Operating Cost to Generate
B29: CHP Fuel Costs, $/kWh | D29: =IF(CHPSysTypeDef="No CHP","No CHP",'Energy Use and Operating Costs'!D24*CHPFuelPrice/'Energy Use and Operating Costs'!D16) -> No CHP | E29: The cost of fuel consumed by the CHP system, per kWh
B30: Thermal Credit, $/kWh | D30: =IF(CHPSysTypeDef="No CHP","No CHP",-('Energy Use and Operating Costs'!C23-'Energy Use and Operating Costs'!D23)*BoilerFuelPrice/'Energy Use and Operating Costs'!D16) -> No CHP | E30: The fuel cost avoided by having CHP provide thermal energy to the site, per kWh
B31: Incremental O&M, $/kWh | D31: =OandMCostsDef -> No CHP | E31: The non-fuel operation and maintenance cost for the CHP system, per kWh
B32: Operating Costs to Generate Power, $/kWh | D32: =IF(CHPSysTypeDef="No CHP","No CHP",SUM(D29:D31)) -> No CHP | E32: The total operating cost to generate power, per kWh
B34: Capital Charge, $/kWh | D34: =IF(CHPSysTypeDef="No CHP","No CHP",PMT(CostCapital,EconLifeDef,-TotalCapCostDef+FedITCDef)/OpHours/CHPAvailabilityDef) -> No CHP | E34: The capital investment charge for the CHP system per kWh - based on cost of capital, annual operating hours, and a 20 year economic life
B35: Total Costs to Generate Power, $/kWh | D35: =IF(CHPSysTypeDef="No CHP","No CHP",D32+D34) -> No CHP | E35: The total cost to generate power, per kWh
B37: Current Average Electricity Price, $/kWh | D37: =AvgElecPrice -> 0 | E37: Current average price paid for electricity, per kWh
B38: Spark Spread, $/kWh** | D38: =IF(D35="No CHP","No CHP",D37-D35) -> No CHP | E38: The difference per kWh between the current delivered electricity price and the total cost to generate power with the CHP system
A39: * See the CHP Spark Spread Results section in the Documentation for more information.
B40: ** A numerically positive spark spread result indicates that the CHP project returns more than the cost of capital indicated on the Inputs page. The greater the spark spread, the higher the return on investment.

Sheet Energy Use and Operating Costs
A1: Energy Use and Operating Costs
A2: Spark Spread Estimator Version 1.2
A6: The results generated by this estimator are intended for educational and outreach purposes only;
A7: they are not intended to replace the economic calculations in a Level 1 CHP feasibility analysis.
A9: The estimate of annual energy use and operating costs presented in this worksheet are supplemental to the CHP Spark Spread Results. They are included here to provide context for the estimated spark spread.
A12: Estimate of Annual Energy Use and Operating Costs
B13: Energy Use | C13: No CHP | D13: With CHP | E13: Difference
B14: Annual Electricity Use
B15: Annual Purchased Power, kWh | C15: =ElecUse*12 -> 0 | D15: =IF(CHPSysTypeDef="No CHP","No CHP",IF(C15-D16<0,0,C15-D16)) -> No CHP | E15: =IF(CHPSysTypeDef="No CHP","No CHP",D15-C15) -> No CHP
B16: Annual CHP Power Generation, kWh | C16: 0 | D16: =IF(CHPSysTypeDef="No CHP","No CHP",CHPSize*CHPAvailabilityDef*OpHours) -> No CHP | E16: =IF(CHPSysTypeDef="No CHP","No CHP",D16-C16) -> No CHP
B17: Total Annual Electricity Use, kWh | C17: =SUM(C15:C16) -> 0 | D17: =SUM(D15:D16) -> 0 | E17: =IF(CHPSysTypeDef="No CHP","No CHP",D17-C17) -> No CHP
B18: Annual Thermal Energy Use
B19: Non-CHP Thermal Use*, MMBtu/yr | C19: =BaseThermalUse*OpHours -> 0 | D19: =IF(CHPSysTypeDef="No CHP","No CHP",IF(D20>C19,0,C19-D20)) -> No CHP | E19: =IF(CHPSysTypeDef="No CHP","No CHP",D19-C19) -> No CHP
B20: CHP Thermal Used, MMBtu/yr | C20: 0 | D20: =IF(CHPSysTypeDef="No CHP","No CHP",IF(CHPThermOutputDef*CHPThermUtilDefault*D16/1000000>C19,C19,CHPThermOutputDef*CHPThermUtilDefault*D16/1000000)) -> No CHP | E20: =IF(CHPSysTypeDef="No CHP","No CHP",D20-C20) -> No CHP
B21: Total Thermal Energy Use, MMBtu/yr | C21: =C19 -> 0 | D21: =IF(CHPSysTypeDef="No CHP","No CHP",D19+D20) -> No CHP | E21: =IF(CHPSysTypeDef="No CHP","No CHP",D21-C21) -> No CHP
B22: Annual Fuel Use
B23: Non-CHP Thermal Fuel Use*, MMBtu/yr | C23: =C19/SiteBoilerEff ->  | D23: =IF(CHPSysTypeDef="No CHP","No CHP",D19/SiteBoilerEff) -> No CHP | E23: =IF(CHPSysTypeDef="No CHP","No CHP",D23-C23) -> No CHP
B24: CHP Fuel Use, MMBtu/yr | C24: 0 | D24: =IF(CHPSysTypeDef="No CHP","No CHP",D16*CHPHeatRateDef/1000000) -> No CHP | E24: =IF(CHPSysTypeDef="No CHP","No CHP",D24-C24) -> No CHP
B25: Annual Total Fuel Use, MMBtu | C25: =C23 ->  | D25: =IF(CHPSysTypeDef="No CHP","No CHP",D23+D24) -> No CHP | E25: =IF(CHPSysTypeDef="No CHP","No CHP",D25-C25) -> No CHP
B27: Operating Costs
B28: Purchased Electricity | C28: =C15*AvgElecPrice -> 0 | D28: =IF(CHPSysTypeDef="No CHP","No CHP",C28*(1-ElecAvoidedDefault)+D15*AvgElecPrice*ElecAvoidedDefault) -> No CHP | E28: =IF(CHPSysTypeDef="No CHP","No CHP",D28-C28) -> No CHP
B29: Purchased Fuel | C29: =C25*BoilerFuelPrice ->  | D29: =IF(CHPSysTypeDef="No CHP","No CHP",D25*CHPFuelPrice) -> No CHP | E29: =IF(CHPSysTypeDef="No CHP","No CHP",D29-C29) -> No CHP
B30: Incremental O&M | C30: 0 | D30: =IF(CHPSysTypeDef="No CHP","No CHP",OandMCostsDef*D16) -> No CHP | E30: =IF(CHPSysTypeDef="No CHP","No CHP",D30-C30) -> No CHP
B31: Annual Operating Costs | C31: =SUM(C28:C30) ->  | D31: =IF(CHPSysTypeDef="No CHP","No CHP",SUM(D28:D30)) -> No CHP | E31: =IF(CHPSysTypeDef="No CHP","No CHP",D31-C31) -> No CHP
B33: Annual Operating Savings | E33: =IF(E31="No CHP", "No CHP",-E31) -> No CHP
B35: CHP Capital Costs | C35: 0 | D35: =IF(CHPSysTypeDef="No CHP","No CHP",TotalCapCostDef*CHPSize) -> No CHP
B36: Investment Tax Credit | C36: 0 | D36: =IF(CHPSysTypeDef="No CHP","No CHP",Defaults!C27) -> No CHP
B37: Net Capital Cost | C37: 0 | D37: =IF(CHPSysTypeDef="No CHP","No CHP",D35+D36) -> No CHP
B38: =CONCATENATE(TEXT(ProjectLifeInput,"#,###")," Year Net Present Value, NPV**") -> Year Net Present Value, NPV** | D38: =IF(CHPSysTypeDef="No CHP","No CHP",NPV) -> No CHP
B39: =CONCATENATE(TEXT(ProjectLifeInput,"#,###")," Year Internal Rate of Return, IRR**") -> Year Internal Rate of Return, IRR** | D39: =IF(CHPSysTypeDef="No CHP","No CHP",IRR) -> No CHP
B40: Simple Payback, Years** | D40: =IF(CHPSysTypeDef="No CHP","No CHP",IF(D37/E33>0,D37/E33,"no savings")) -> No CHP
B41: * Non-CHP Thermal Use is from onsite boilers or heaters that are not part of the CHP system. The CHP system is assumed to have a 95% availability, so an auxiliary boiler would be used when the CHP system is down for maintenance, or for times when the site thermal demand exceeds the thermal output of the CHP system.
B44: **Simple payback, IRR and NPV, are estimates to give a preliminary measure of a CHP investment. The Partnership in its project development handbook provides further considerations, and recommends supplementing this result with other financial analysis before making an investment grade decision.

Sheet Technology Assumptions (hidden)
B1: System | C1: No CHP | D1: 100 kW Rich Burn RE Integral 3 way catalyst | E1: 800kW Lean Burn w SCR | F1: 3000 kW RE | G1: 5 MW GT | H1: 10 MW GT | I1: 40 MW GT
B2: Electric Capacity, kW | C2: 0 | D2: 50 | E2: 500 | F2: 2000 | G2: 4000 | H2: 10000 | I2: 20000
B3: Thermal, Btu/hour | C3: 0 | D3: =D2*D15/1000000 -> 0.305 | E3: =E2*E15/1000000 -> 2.1495 | F3: =3000*F15/1000000 -> 10.53 | G3: =3000*G15/1000000 -> 15 | H3: =H2*H15/1000000 -> 46.74 | I3: =I2*I15/1000000 -> 63.78
B4: Power to Heat Ratio | C4: 0.56 | D4: =3413/D15 -> 0.5595081967 | E4: 0.7939055594 | F4: 0.9723646724 | G4: 0.6826 | H4: 0.7302096705 | I4: 1.070241455
B5: Market Size Bin | C5: No CHP | D5: 50-500 kW | E5: 500kW-2,000kW | F5: 2-4 MW | G5: 4-10 MW | H5: 10-20 MW | I5: >20 MW
B6: Technology | C6: No CHP | D6: Recip Engine | E6: Recip Engine | F6: Recip Engine | G6: Gas Turbine | H6: Gas Turbine | I6: Gas Turbine
B7: Capacity, kW | C7: No CHP | D7: 50 | E7: 500 | F7: 2000 | G7: 4000 | H7: 10000 | I7: 20000
B8: Basic Capital Costs | C8: No CHP | D8: 2210 | E8: 1640 | F8: 1500 | G8: 1400 | H8: 1298 | I8: 972
B9: Early Market/Site Adders | C9: No CHP | D9: 1.2 | E9: 1.2 | F9: 1.1 | G9: 1.05 | H9: 1.05 | I9: 1.05
B10: Adjusted Capital Cost | C10: No CHP | D10: 2750 | E10: 2000 | F10: 1550 | G10: 2000 | H10: 1600 | I10: 1230
B11: AT Cost, $/kW | C11: No CHP | D11: 0 | E11: 300 | F11: 200 | G11: 240 | H11: 180 | I11: 80
B12: Total Capital Cost, $/kW | C12: No CHP | D12: =SUM(D10:D11) -> 2750 | E12: 2300 | F12: 1750 | G12: 2240 | H12: 1780 | I12: 1310
B13: Federal ITC | C13: No CHP | D13: =D12*0.1 -> 275 | E13: 230 | F13: 175 | G13: 224 | H13: 178 | I13: 131
B14: Heat Rate, Btu/kWh | C14: No CHP | D14: 12000 | E14: 9760 | F14: 9492 | G14: 12000 | H14: 11765 | I14: 9220
B15: Thermal Output, Btu/kWh | C15: No CHP | D15: =610000/100 -> 6100 | E15: 4299 | F15: =10530000/3000 -> 3510 | G15: 5000 | H15: 4674 | I15: 3189
B16: Electric Efficiency, % | C16: No CHP | D16: =3412/D14 -> 0.2843333333 | E16: 0.3495901639 | F16: 0.3594605984 | G16: 0.2843333333 | H16: 0.2900127497 | I16: 0.3700650759
B17: O&M Costs, $/kWh | C17: No CHP | D17: 0.02 | E17: 0.016 | F17: 0.014 | G17: 0.01 | H17: 0.009 | I17: 0.006
B18: Economic Life, years | C18: No CHP | D18: 10 | E18: 10 | F18: 15 | G18: 20 | H18: 20 | I18: 20
B19: Availability | C19: No CHP | D19: 0.95 | E19: 0.95 | F19: 0.95 | G19: 0.95 | H19: 0.95 | I19: 0.95
B20: Power to Heat Ratio | C20: No CHP | D20: =3413/D15 -> 0.5595081967 | E20: 0.7939055594 | F20: 0.9723646724 | G20: 0.6826 | H20: 0.7302096705 | I20: 1.070241455

Sheet State Energy Prices (hidden)
B1: Average Industrial Electric and Gas Prices
B3: Average Industrial Price by State
B4: State | C4: Electric Price $ / kWh | D4: Gas Price, $/MMBtu
B5: Alabama | C5: 0.06179230769 | D5: 6.09629
B6: Alaska | C6: 0.158 | D6: 7.34923
B7: Arizona | C7: 0.06720769231 | D7: 6.34593
B8: Arkansas | C8: 0.05921538462 | D8: 7.59097
B9: California | C9: 0.1169384615 | D9: 5.994020909
B10: Colorado | C10: 0.07391538462 | D10: 6.678861789
B11: Connecticut | C11: 0.1284307692 | D11: 6.7907
B12: Delaware | C12: 0.08753846154 | D12: 7.109794167
B13: District of Columbia | C13: 0.0763 | D13: 7.081285088
B14: Florida | C14: 0.07950769231 | D14: 6.19346
B15: Georgia | C15: 0.06466923077 | D15: 5.977485929
B16: Hawaii | C16: 0.3041538462 | D16: 26.29643527
B17: Idaho | C17: 0.06190769231 | D17: 5.511330909
B18: Illinois | C18: 0.06187692308 | D18: 6.382413636
B19: Indiana | C19: 0.06789230769 | D19: 6.46443
B20: Iowa | C20: 0.05863846154 | D20: 7.299244545
B21: Kansas | C21: 0.07324615385 | D21: 5.99249531
B22: Kentucky | C22: 0.05719230769 | D22: 5.573733583
B23: Louisiana | C23: 0.0605 | D23: 4.485553471
B24: Maine | C24: 0.08885384615 | D24: 8.950121111
B25: Maryland | C25: 0.09020769231 | D25: 7.844955
B26: Massachusetts | C26: 0.1280769231 | D26: 8.484962727
B27: Michigan | C27: 0.07677692308 | D27: 6.280491667
B28: Minnesota | C28: 0.07113846154 | D28: 5.990243902
B29: Mississippi | C29: 0.06713846154 | D29: 5.96097561
B30: Missouri | C30: 0.06177692308 | D30: 7.60598
B31: Montana | C31: 0.05465384615 | D31: 6.100766667
B32: Nebraska | C32: 0.07255384615 | D32: 5.42739212
B33: Nevada | C33: 0.07015384615 | D33: 7.05772
B34: New Hampshire | C34: 0.1176153846 | D34: 9.152326
B35: New Jersey | C35: 0.1156153846 | D35: 7.2724025
B36: New Mexico | C36: 0.06493076923 | D36: 6.03783
B37: New York | C37: 0.06376923077 | D37: 7.085830833
B38: North Carolina | C38: 0.06480769231 | D38: 6.903382727
B39: North Dakota | C39: 0.07574615385 | D39: 4.944715447
B40: Ohio | C40: 0.06465384615 | D40: 5.98174
B41: Oklahoma | C41: 0.05562307692 | D41: 6.714399167
B42: Oregon | C42: 0.06075384615 | D42: 6.018699187
B43: Pennsylvania | C43: 0.07371538462 | D43: 6.845341667
B44: Rhode Island | C44: 0.1263153846 | D44: 5.17594
B45: South Carolina | C45: 0.06231538462 | D45: 5.857410882
B46: South Dakota | C46: 0.07033076923 | D46: 6.985365854
B47: Tennessee | C47: 0.06657692308 | D47: 6.091557223
B48: Texas | C48: 0.06080769231 | D48: 4.493058161
B49: Utah | C49: 0.06051538462 | D49: 5.503939962
B50: Vermont | C50: 0.1022615385 | D50: 6.628893058
B51: Virginia | C51: 0.06856923077 | D51: 6.317615176
B52: Washington | C52: 0.04333076923 | D52: 7.369267273
B53: West Virginia | C53: 0.05962307692 | D53: 4.224390244
B54: Wisconsin | C54: 0.07617692308 | D54: 7.503939962
B55: Wyoming | C55: 0.06586923077 | D55: 4.669918699

Sheet Defaults (hidden)
B4: Monthly Fuel Use in MMBtu/month? | C4: =ElecUse/VLOOKUP(Application,Applications!$B$2:$E$40,2,FALSE)*3413/1000000/0.8 -> 
B5: Annual Facility Operating Hours | C5: =VLOOKUP(Application,Applications!$B$2:$E$40,4,FALSE) -> 
B6: Federal ITC | C6: =IF(FederalITC="Yes",10%,"") -> 
B7: Boiler Fuel Price, $/MMBtu | C7: =VLOOKUP(State,'State Energy Prices'!$B$5:$D$55,3,FALSE) -> 
B8: CHP Fuel Price, $/MMBtu | C8: =VLOOKUP(State,'State Energy Prices'!$B$5:$D$55,3,FALSE) -> 
B9: Average Electric Price, $/kWh | C9: =VLOOKUP(State,'State Energy Prices'!$B$5:$D$55,2,FALSE) -> 
B10: Percent of Average Electric Rate Avoided | C10: 0.9
B11: Site Boiler Efficiency | C11: 0.8
B12: CHP Thermal Utilization | C12: 1
B13: Cost of Capital, % | C13: 0.07
B14: Inflation Rate % | C14: 0.02
B16: CHP System Type | C16: =HLOOKUP(CHPSize,'Technology Assumptions'!$C$2:$I$20,D16) -> No CHP | D16: 5
B17: Total Capital Cost, $/kW | C17: =HLOOKUP(CHPSize,'Technology Assumptions'!$C$2:$I$20,D17) -> No CHP | D17: 11
B18: Federal ITC, $/kW | C18: =IF(C6="",0,TotalCapCostDef*C6*-1) -> 0 | D18: 12
B19: Heat Rate, Btu/kWh | C19: =HLOOKUP(CHPSize,'Technology Assumptions'!$C$2:$I$20,D19) -> No CHP | D19: 13
B20: Thermal Output, Btu/kWh | C20: =HLOOKUP(CHPSize,'Technology Assumptions'!$C$2:$I$20,D20) -> No CHP | D20: 14
B21: Electric Efficiency, % | C21: =HLOOKUP(CHPSize,'Technology Assumptions'!$C$2:$I$20,D21) -> No CHP | D21: 15
B22: O&M Costs, $/kWh | C22: =HLOOKUP(CHPSize,'Technology Assumptions'!$C$2:$I$20,D22) -> No CHP | D22: 16
B23: Economic Life, years | C23: =HLOOKUP(CHPSize,'Technology Assumptions'!$C$2:$I$20,D23) -> No CHP | D23: 17
B24: CHP Plant Availability | C24: =HLOOKUP(CHPSize,'Technology Assumptions'!$C$2:$I$20,D24) -> No CHP | D24: 18
B25: Power to heat Ratio | C25: =HLOOKUP(CHPSize,'Technology Assumptions'!$C$2:$I$20,D25) -> No CHP | D25: 19
B27: Federal ITC Value | C27: =IF(CHPSize>15000,FedITCDef*15000,FedITCDef*CHPSize) -> 0
B28: Yes
B29: No
B33: 1 | C33: 5 days/week, 8 hours/day: 2,080 hrs | D33: =52*5*8 -> 2080
B34: 2 | C34: 5 days/week, 16 hours/day: 4,160 hrs | D34: =52*5*16 -> 4160
B35: 3 | C35: 7 days/week, 16 hours/day: 5,840 hrs | D35: 5840
B36: 4 | C36: 7 days/week, 24 hours/day: 8,760 hrs | D36: 8760
B37: 5 | C37: I will enter a value
B43: Net Capital Investment | C43: =-TotalCapCostDef*CHPSize ->  | D43: 1 | E43: NPV | F43: =NPV(CostCapital,C44:C93)+C43 -> 
A44: 1 | B44: Year 1 Savings | C44: =AnOpSavings -> No CHP | D44: 2 | E44: IRR | F44: =IRR(C43:C93) -> 
A45: 2 | B45: Year 2 Savings | C45: =IF(Defaults!A45<=ProjectLifeInput,C44*(1+Inflation),0) -> 0 | D45: 3
A46: 3 | B46: Year 3 Savings | C46: =IF(Defaults!A46<=ProjectLifeInput,C45*(1+Inflation),0) -> 0 | D46: 4
A47: 4 | B47: Year 4 Savings | C47: =IF(Defaults!A47<=ProjectLifeInput,C46*(1+Inflation),0) -> 0 | D47: 5
A48: 5 | B48: Year 5 Savings | C48: =IF(Defaults!A48<=ProjectLifeInput,C47*(1+Inflation),0) -> 0 | D48: 6
A49: 6 | B49: Year 6 Savings | C49: =IF(Defaults!A49<=ProjectLifeInput,C48*(1+Inflation),0) -> 0 | D49: 7
A50: 7 | B50: Year 7 Savings | C50: =IF(Defaults!A50<=ProjectLifeInput,C49*(1+Inflation),0) -> 0 | D50: 8
A51: 8 | B51: Year 8 Savings | C51: =IF(Defaults!A51<=ProjectLifeInput,C50*(1+Inflation),0) -> 0 | D51: 9
A52: 9 | B52: Year 9 Savings | C52: =IF(Defaults!A52<=ProjectLifeInput,C51*(1+Inflation),0) -> 0 | D52: 10
A53: 10 | B53: Year 10 Savings | C53: =IF(Defaults!A53<=ProjectLifeInput,C52*(1+Inflation),0) -> 0 | D53: 11
A54: 11 | B54: Year 11 Savings | C54: =IF(Defaults!A54<=ProjectLifeInput,C53*(1+Inflation),0) -> 0 | D54: 12
A55: 12 | B55: Year 12 Savings | C55: =IF(Defaults!A55<=ProjectLifeInput,C54*(1+Inflation),0) -> 0 | D55: 13
A56: 13 | B56: Year 13 Savings | C56: =IF(Defaults!A56<=ProjectLifeInput,C55*(1+Inflation),0) -> 0 | D56: 14
A57: 14 | B57: Year 14 Savings | C57: =IF(Defaults!A57<=ProjectLifeInput,C56*(1+Inflation),0) -> 0 | D57: 15
A58: 15 | B58: Year 15 Savings | C58: =IF(Defaults!A58<=ProjectLifeInput,C57*(1+Inflation),0) -> 0 | D58: 16
A59: 16 | B59: Year 16 Savings | C59: =IF(Defaults!A59<=ProjectLifeInput,C58*(1+Inflation),0) -> 0 | D59: 17
A60: 17 | B60: Year 17 Savings | C60: =IF(Defaults!A60<=ProjectLifeInput,C59*(1+Inflation),0) -> 0 | D60: 18
A61: 18 | B61: Year 18 Savings | C61: =IF(Defaults!A61<=ProjectLifeInput,C60*(1+Inflation),0) -> 0 | D61: 19
A62: 19 | B62: Year 19 Savings | C62: =IF(Defaults!A62<=ProjectLifeInput,C61*(1+Inflation),0) -> 0 | D62: 20
A63: 20 | B63: Year 20 Savings | C63: =IF(Defaults!A63<=ProjectLifeInput,C62*(1+Inflation),0) -> 0 | D63: 21
A64: 21 | B64: Year 21 Savings | C64: =IF(Defaults!A64<=ProjectLifeInput,C63*(1+Inflation),0) -> 0 | D64: 22
A65: 22 | B65: Year 22 Savings | C65: =IF(Defaults!A65<=ProjectLifeInput,C64*(1+Inflation),0) -> 0 | D65: 23
A66: 23 | B66: Year 23 Savings | C66: =IF(Defaults!A66<=ProjectLifeInput,C65*(1+Inflation),0) -> 0 | D66: 24
A67: 24 | B67: Year 24 Savings | C67: =IF(Defaults!A67<=ProjectLifeInput,C66*(1+Inflation),0) -> 0 | D67: 25
A68: 25 | B68: Year 25 Savings | C68: =IF(Defaults!A68<=ProjectLifeInput,C67*(1+Inflation),0) -> 0 | D68: 26
A69: 26 | B69: Year 26 Savings | C69: =IF(Defaults!A69<=ProjectLifeInput,C68*(1+Inflation),0) -> 0 | D69: 27
A70: 27 | B70: Year 27 Savings | C70: =IF(Defaults!A70<=ProjectLifeInput,C69*(1+Inflation),0) -> 0 | D70: 28
A71: 28 | B71: Year 28 Savings | C71: =IF(Defaults!A71<=ProjectLifeInput,C70*(1+Inflation),0) -> 0 | D71: 29
A72: 29 | B72: Year 29 Savings | C72: =IF(Defaults!A72<=ProjectLifeInput,C71*(1+Inflation),0) -> 0 | D72: 30
A73: 30 | B73: Year 30 Savings | C73: =IF(Defaults!A73<=ProjectLifeInput,C72*(1+Inflation),0) -> 0
A74: 31 | C74: =IF(Defaults!A74<=ProjectLifeInput,C73*(1+Inflation),0) -> 0
A75: 32 | C75: =IF(Defaults!A75<=ProjectLifeInput,C74*(1+Inflation),0) -> 0
A76: 33 | C76: =IF(Defaults!A76<=ProjectLifeInput,C75*(1+Inflation),0) -> 0
A77: 34 | C77: =IF(Defaults!A77<=ProjectLifeInput,C76*(1+Inflation),0) -> 0
A78: 35 | B78: Year 35 Savings | C78: =IF(Defaults!A78<=ProjectLifeInput,C77*(1+Inflation),0) -> 0
A79: 36 | C79: =IF(Defaults!A79<=ProjectLifeInput,C78*(1+Inflation),0) -> 0
A80: 37 | C80: =IF(Defaults!A80<=ProjectLifeInput,C79*(1+Inflation),0) -> 0
A81: 38 | C81: =IF(Defaults!A81<=ProjectLifeInput,C80*(1+Inflation),0) -> 0
A82: 39 | C82: =IF(Defaults!A82<=ProjectLifeInput,C81*(1+Inflation),0) -> 0
A83: 40 | B83: Year 40 Savings | C83: =IF(Defaults!A83<=ProjectLifeInput,C82*(1+Inflation),0) -> 0
A84: 41 | C84: =IF(Defaults!A84<=ProjectLifeInput,C83*(1+Inflation),0) -> 0
A85: 42 | C85: =IF(Defaults!A85<=ProjectLifeInput,C84*(1+Inflation),0) -> 0
A86: 43 | C86: =IF(Defaults!A86<=ProjectLifeInput,C85*(1+Inflation),0) -> 0
A87: 44 | C87: =IF(Defaults!A87<=ProjectLifeInput,C86*(1+Inflation),0) -> 0
A88: 45 | B88: Year 45 Savings | C88: =IF(Defaults!A88<=ProjectLifeInput,C87*(1+Inflation),0) -> 0
A89: 46 | C89: =IF(Defaults!A89<=ProjectLifeInput,C88*(1+Inflation),0) -> 0
A90: 47 | C90: =IF(Defaults!A90<=ProjectLifeInput,C89*(1+Inflation),0) -> 0
A91: 48 | C91: =IF(Defaults!A91<=ProjectLifeInput,C90*(1+Inflation),0) -> 0
A92: 49 | C92: =IF(Defaults!A92<=ProjectLifeInput,C91*(1+Inflation),0) -> 0
A93: 50 | B93: Year 50 Savings | C93: =IF(Defaults!A93<=ProjectLifeInput,C92*(1+Inflation),0) -> 0

Sheet Applications (hidden)
B1: Industry Description | C1: P/H Ratio | D1: Thermal App. | E1: Load, hours / year
B2: 20 - Food and Kindred Products | C2: 0.547 | D2: Heat | E2: 7500
B3: 21 - Tobacco Products | C3: 1.85 | D3: Heat | E3: 7500
B4: 22 - Textiles | C4: 1.054 | D4: Heat | E4: 7500
B5: 24 - Lumber and Wood | C5: 0.488 | D5: Heat | E5: 7500
B6: 25 - Furniture | C6: 4.437 | D6: Heat | E6: 7500
B7: 26 - Paper | C7: 0.293 | D7: Heat | E7: 8760
B8: 27 - Printing | C8: 11.165 | D8: Heat | E8: 7500
B9: 28 - Chemicals | C9: 0.659 | D9: Heat | E9: 8760
B10: 29 - Petroleum Refining | C10: 0.261 | D10: Heat | E10: 8760
B11: 30 - Rubber/Misc Plastics | C11: 3.079 | D11: Heat | E11: 8760
B12: 32 - Stone/Clay/Glass | C12: 8.726 | D12: Heat | E12: 8760
B13: 33 - Primary Metals | C13: 4.69 | D13: Heat | E13: 8760
B14: 34 - Fabricated Metals | C14: 5.026 | D14: Heat | E14: 7500
B15: 35 - Machinery/Computer Equip | C15: 6.846 | D15: Heat | E15: 7500
B16: 37 - Trasportation Equip. | C16: 73.499 | D16: Heat | E16: 7500
B17: 38 - Instruments | C17: 7.842 | D17: Heat | E17: 7500
B18: 39 - Misc. Manufacturing | C18: 10.318 | D18: Heat | E18: 7500
B19: 4222 - Warehouses | C19: 0.68 | D19: Cool | E19: 8760
B20: 4300 - Post Offices | C20: 1.259259259 | D20: Cool | E20: 4500
B21: 4581 - Airports | C21: 1.096774194 | D21: Cool | E21: 8760
B22: 4952 - Water Treatment/Sanitary | C22: 1.36 | D22: Heat | E22: 7500
B23: 5200 - Big Box Retail | C23: 1.837837838 | D23: Cool | E23: 4500
B24: 5411 - Food Sales | C24: 3.4 | D24: Cool | E24: 8760
B25: 5812 - Restaurants | C25: 1.416666667 | D25: Cool | E25: 4500
B26: 6512 - Office Buildings | C26: 1.096774194 | D26: Cool | E26: 4500
B27: 6513 - Apartments | C27: 0.8095238095 | D27: Heat/Cool | E27: 7500
B28: 7011 - Hotels | C28: 0.8095238095 | D28: Heat/Cool | E28: 7500
B29: 7211 - Laundries | C29: 0.68 | D29: Heat | E29: 4500
B30: 7542 - Carwashes | C30: 0.68 | D30: Heat | E30: 4500
B31: 7832 - Movie Theaters | C31: 1.837837838 | D31: Cool | E31: 3000
B32: 7991 - Health Clubs | C32: 0.85 | D32: Heat | E32: 4500
B33: 7997 - Golf/Country Clubs | C33: 0.85 | D33: Heat | E33: 4500
B34: 8051 - Nursing Homes | C34: 0.8095238095 | D34: Heat/Cool | E34: 7500
B35: 8062 - Hospitals | C35: 0.7234042553 | D35: Heat/Cool | E35: 7500
B36: 8211 - Schools | C36: 1.096774194 | D36: Heat | E36: 4500
B37: 8221 - Colleges/Universities | C37: 0.7727272727 | D37: Heat | E37: 8760
B38: 8412 - Museums | C38: 1.096774194 | D38: Heat/Cool | E38: 4500
B39: 9223 - Prisons | C39: 1.511111111 | D39: Heat | E39: 8760
B40: N.C. - Data Centers | C40: 0.68 | D40: Cool | E40: 8760
